bitfinex-derivatives/quotes_ETHF0:USTF0_20250107
["timestamp","ask_amount","ask_price","bid_price","bid_amount"]
[1736274610048,5.67983575,3432.2,3431.8,0.049]
[1736274610251,2.22510197,3432.2,3432.1,3.49924]
[1736274610650,0.29141,3432.6,3432.2,0.29143]
[1736274610952,2.22510197,3432.8,3432.5,3.2078]
[1736274611151,2.22510197,3432.8,3432.7,0.29139]
[1736274611350,6.82091298,3433.2,3433.1,0.29136]
[1736274611552,6.82091298,3433.2,3433.1,3.2078]
[1736274611852,0.29138,3432.8,3432.3,3.49922]
[1736274612055,2.32147749,3432.5,3432.2,0.29143]
[1736274612245,2.32147749,3432.5,3431.9,10.06064567]
[1736274612447,2.32147749,3432.2,3431.9,10.06064567]
[1736274612749,0.29145,3432.0,3431.9,6.85284567]
[1736274613253,0.29145,3432.0,3431.5,0.29149]
[1736274613555,2.77391422,3432.2,3431.4,3.2078]
[1736274613852,0.29145,3432.1,3431.7,0.29147]
[1736274614355,0.29145,3432.0,3431.6,0.29148]
[1736274614558,0.29144,3432.1,3431.5,0.29148]
[1736274614757,0.29145,3432.0,3431.6,0.29148]
[1736274615160,0.29146,3431.9,3431.5,0.29149]
[1736274615654,0.29146,3431.9,3431.6,0.29148]
[1736274615855,0.29146,3431.9,3431.5,0.29149]
[1736274616158,0.29139,3432.8,3432.4,0.29141]
[1736274616362,5.98171422,3433.4,3432.4,0.29141]
[1736274616656,0.2914,3432.6,3432.0,0.29145]
[1736274616860,5.98171422,3433.0,3431.9,0.963]
[1736274617155,0.29144,3432.2,3431.9,0.963]
[1736274617352,0.29143,3432.3,3431.9,1.25445]
[1736274617547,3.2078,3432.6,3431.9,0.963]
[1736274617754,0.43735378,3433.3,3432.2,3.2078]
[1736274617955,0.29135,3433.2,3432.7,0.29139]
[1736274618157,0.43735378,3433.3,3432.6,3.2078]
[1736274618351,3.22182,3433.6,3432.7,0.963]
[1736274618565,3.22182,3433.6,3433.2,0.29135]
[1736274618566,2.9305,3433.6,3433.2,0.29135]
[1736274618863,2.9305,3433.6,3433.3,0.29134]
[1736274619065,2.9305,3433.6,3433.1,0.29136]
[1736274619357,2.9305,3433.6,3433.1,0.9667]
[1736274619549,0.29124,3434.5,3433.6,0.29131]
[1736274619754,4.1787,3434.6,3433.7,0.2913]
[1736274620052,4.1787,3434.6,3433.4,3.2078]
[1736274620053,0.29128,3434.1,3433.4,3.2078]
[1736274620256,0.29128,3434.1,3433.6,0.29131]
[1736274620453,4.43408628,3434.6,3433.4,3.2078]
[1736274620653,0.29129,3434.0,3433.5,0.29132]
[1736274620956,2.77391422,3434.3,3433.6,0.29131]
[1736274621150,0.29129,3434.0,3433.6,0.29131]
[1736274621349,3.2078,3434.2,3433.1,0.9667]
[1736274621552,0.29128,3434.0,3433.6,0.29131]
[1736274621749,0.29128,3434.0,3433.5,3.2078]
[1736274621956,0.29128,3434.0,3433.5,3.49912]
[1736274622461,0.29129,3433.9,3433.5,3.49912]
[1736274622657,0.29128,3434.0,3433.6,0.29131]
[1736274622863,0.29129,3433.9,3433.5,3.49912]
[1736274623060,0.29129,3433.9,3433.6,0.29131]
[1736274623362,0.29129,3433.9,3433.1,0.9667]
[1736274623363,2.77391422,3433.9,3433.1,0.9667]
[1736274623561,2.77391422,3433.9,3433.1,4.1745]
[1736274623562,2.77391422,3433.5,3433.1,4.1745]
[1736274623758,3.2078,3433.4,3432.4,7.77557953]
[1736274623958,3.2078,3432.9,3432.4,7.77557953]
[1736274624264,0.2914,3432.7,3432.4,7.77557953]
[1736274624466,0.2914,3432.6,3432.4,7.77557953]
[1736274624762,0.29138,3432.8,3432.4,7.77557953]
[1736274624959,0.2914,3432.6,3432.4,6.84247953]
[1736274625361,0.2914,3432.6,3432.3,3.2078]
[1736274625555,3.2078,3432.4,3431.4,10.05027953]
[1736274625755,0.29148,3431.7,3431.4,10.34177953]
[1736274626064,2.77391422,3432.1,3431.4,10.05027953]
[1736274626268,0.29149,3431.5,3431.4,6.84247953]
[1736274626566,4.79329,3431.5,3431.4,6.84247953]
[1736274626761,4.5018,3431.5,3430.6,0.29157]
[1736274627067,4.5018,3431.5,3430.5,6.84247953]
[1736274627461,4.5018,3431.5,3430.6,0.29156]
[1736274627663,0.29154,3431.0,3430.5,6.84247953]
[1736274627863,0.29154,3431.0,3430.7,3.49936]
[1736274628066,4.5018,3431.5,3430.7,3.2078]
[1736274628263,3.2078,3431.5,3430.7,3.2078]
[1736274628572,0.2915,3431.5,3431.1,3.49932]
[1736274628868,0.29152,3431.3,3431.1,3.2078]
[1736274629366,0.29152,3431.2,3431.1,3.2078]
[1736274629562,0.29151,3431.3,3431.1,3.2078]
[1736274629764,2.77391422,3431.7,3431.1,3.2078]
[1736274630264,2.77391422,3431.3,3430.7,3.2078]
[1736274630467,2.77391422,3431.3,3430.4,1.843]
[1736274630768,0.29157,3430.6,3430.2,6.84247953]
[1736274631061,0.29159,3430.3,3430.2,6.84247953]
[1736274631456,3.49939,3430.3,3430.2,6.84247953]
[1736274631658,8.2078,3430.3,3429.9,17.39507922]
[1736274631859,3.06553422,3430.0,3429.9,17.39507922]
[1736274632261,3.06553422,3430.0,3429.0,3.2078]
[1736274632262,2.77391422,3430.0,3429.0,3.2078]
[1736274632465,0.29169,3429.2,3429.0,3.2078]
[1736274632662,0.2917,3429.1,3429.0,3.2078]
[1736274632860,0.29171,3428.9,3428.8,17.39507922]
[1736274633267,5.29171,3428.9,3428.8,16.77464495]
[1736274633464,5.29171,3428.9,3428.6,11.40413255]
[1736274633465,7.77391422,3428.9,3428.6,2.79250419]
[1736274633665,0.29176,3428.3,3428.2,13.68495907]
[1736274633866,3.49956,3428.3,3428.2,13.68495907]
[1736274634064,1.58376,3428.3,3428.2,13.68495907]
[1736274634274,7.56547422,3428.3,3428.2,13.68495907]
[1736274634471,7.27371422,3428.3,3427.3,3.2078]
[1736274634671,7.27371422,3428.3,3427.4,0.29184]
[1736274634972,0.29179,3428.0,3427.3,0.29184]
[1736274635165,7.27371422,3428.3,3427.3,3.2078]
[1736274635371,3.2078,3428.3,3427.3,3.2078]
[1736274635575,3.2078,3428.3,3426.7,0.9578]
[1736274635576,0.29172,3428.9,3428.2,0.29177]
[1736274635763,0.29173,3428.8,3428.2,3.2078]
[1736274636074,3.49951,3429.0,3428.4,0.29175]
[1736274636267,3.2078,3429.4,3428.9,0.29171]
[1736274636473,3.2078,3429.4,3428.6,3.2078]
[1736274636874,5.69886045,3429.7,3428.6,3.2078]
[1736274637081,5.69886045,3429.7,3429.1,3.2078]
[1736274637370,0.29165,3429.7,3429.3,3.2078]
[1736274637567,5.98171422,3430.2,3429.3,3.2078]
[1736274637767,5.98171422,3430.2,3429.2,0.29169]
[1736274637975,5.98171422,3430.2,3428.9,3.2078]
[1736274638171,6.27332422,3430.2,3429.5,0.29166]
[1736274638373,1.8867,3430.7,3429.3,3.2078]
[1736274638374,2.77391422,3430.6,3429.8,3.2078]
[1736274638572,3.2078,3431.2,3429.8,5.98171422]
[1736274638872,3.2078,3431.2,3430.4,3.2078]
[1736274639174,3.2078,3430.8,3429.9,3.2078]
[1736274639373,2.77391422,3430.6,3429.9,3.2078]
[1736274639573,1.293,3430.7,3429.5,0.29166]
[1736274639574,0.29162,3430.0,3429.5,0.29166]
[1736274639872,0.29161,3430.2,3429.7,0.29164]
[1736274640374,3.2078,3430.4,3429.8,0.29164]
[1736274640574,0.2916,3430.3,3429.8,0.29164]
[1736274640776,3.2078,3430.8,3429.7,3.2078]
[1736274640975,3.49935,3430.8,3430.3,0.29159]
[1736274641175,3.49935,3430.8,3429.7,3.2078]
[1736274641176,3.2078,3430.8,3429.7,4.5008]
[1736274641482,0.29151,3431.3,3430.6,0.29157]
[1736274641771,1.32767806,3431.5,3431.2,3.2078]
[1736274641966,1.32767806,3431.5,3431.4,0.2915]
[1736274642168,1.32767806,3431.5,3431.2,3.2078]
[1736274642364,1.32767806,3431.5,3431.4,0.2915]
[1736274642672,3.93628,3432.7,3431.2,3.2078]
[1736274642872,0.29144,3432.1,3432.0,3.2078]
[1736274643978,4.5008,3432.7,3430.9,1.293]
[1736274644180,0.29146,3432.0,3431.4,3.2078]
[1736274644476,0.29146,3432.0,3431.4,3.4993]
[1736274644876,0.29147,3431.8,3431.4,3.2078]
[1736274645273,0.29148,3431.7,3431.4,3.2078]
[1736274646074,0.29149,3431.6,3431.4,3.2078]
[1736274646276,0.2915,3431.5,3430.9,3.49934]
[1736274646672,3.2078,3431.4,3430.6,0.9003]
[1736274646879,3.49931,3431.4,3430.7,0.29156]
[1736274647081,3.2078,3431.4,3430.6,0.9003]
[1736274647385,3.2078,3431.4,3430.7,0.29156]
[1736274647688,0.29152,3431.2,3430.6,1.19187]
[1736274647873,0.29152,3431.3,3430.6,1.19187]
[1736274648072,0.29152,3431.3,3430.7,0.29156]
[1736274648679,0.29152,3431.3,3430.6,0.9003]
[1736274648880,3.2078,3431.4,3430.6,0.9003]
[1736274649075,0.29153,3431.1,3430.6,0.9003]
[1736274649281,0.29153,3431.1,3428.8,3.207]
[1736274649282,3.2078,3430.9,3430.1,3.2078]
[1736274649485,3.2078,3430.9,3429.6,1.293]
[1736274649486,3.2078,3430.9,3429.7,4.0977]
[1736274649781,0.29157,3430.7,3430.1,0.29161]
[1736274649976,0.29157,3430.7,3430.1,3.49941]
[1736274650175,3.2078,3430.9,3430.1,3.49941]
[1736274650176,3.2078,3430.9,3430.1,3.2078]
[1736274650478,0.29153,3431.2,3430.6,0.29157]
[1736274650781,0.29155,3430.9,3430.4,0.29158]
[1736274650977,3.49931,3431.3,3430.8,0.29155]
[1736274651184,3.49931,3431.3,3430.5,3.2078]
[1736274651185,3.2078,3431.3,3430.5,3.2078]
[1736274651677,3.2078,3430.9,3430.1,3.2078]
[1736274651876,3.2078,3430.9,3429.7,4.0977]
[1736274652076,0.29157,3430.6,3430.1,3.49941]
[1736274652577,0.29156,3430.8,3430.4,0.29159]
[1736274652778,0.29155,3430.8,3430.1,3.2078]
[1736274652979,0.29155,3430.8,3430.4,0.29158]
[1736274653175,1.293,3431.2,3430.1,3.2078]
[1736274653587,0.29156,3430.8,3430.1,3.2078]
[1736274653777,0.29156,3430.8,3430.3,0.29159]
[1736274654380,0.29159,3430.5,3430.1,3.2078]
[1736274654573,0.29158,3430.5,3430.1,3.49941]
[1736274654983,0.29157,3430.6,3430.2,0.2916]
[1736274655381,0.29155,3430.8,3430.4,0.29158]
[1736274655581,0.29157,3430.7,3430.3,0.29159]
[1736274655776,0.29157,3430.6,3430.2,0.2916]
[1736274656377,3.2078,3430.9,3430.1,3.2078]
[1736274656575,0.29157,3430.7,3430.3,0.29159]
[1736274656782,0.29157,3430.6,3430.3,0.29159]
[1736274656987,0.29157,3430.7,3430.3,0.29159]
[1736274657282,3.93647,3431.9,3430.5,3.2078]
[1736274657488,3.93647,3431.9,3430.3,0.72899]
[1736274657489,0.29151,3431.4,3431.0,0.29153]
[1736274657684,7.06737,3431.9,3430.9,3.2078]
[1736274657685,0.29152,3431.3,3430.9,3.49934]
[1736274657988,0.29152,3431.2,3430.9,3.2078]
[1736274658182,6.3387,3431.9,3430.9,3.2078]
[1736274658382,0.29152,3431.3,3430.9,3.49934]
[1736274658584,0.29149,3431.6,3430.9,3.2078]
[1736274658785,0.29148,3431.7,3431.3,0.2915]
[1736274659086,3.93639,3432.3,3431.3,3.2078]
[1736274659087,3.2078,3432.3,3431.3,3.2078]
[1736274659287,3.2078,3432.3,3431.4,3.2078]
[1736274659482,0.29147,3431.9,3431.4,3.2078]
[1736274659678,0.29148,3431.7,3431.4,3.2078]
[1736274659878,0.29149,3431.6,3431.4,3.2078]
[1736274660084,0.2915,3431.5,3431.4,3.2078]
[1736274660285,3.2078,3431.9,3431.0,4.46873]
[1736274660485,0.29152,3431.3,3431.0,4.46873]
[1736274660686,3.2078,3431.5,3431.0,4.1772]
[1736274660891,0.29151,3431.4,3431.0,4.46873]
[1736274661183,0.29152,3431.3,3431.0,4.46873]
[1736274661390,0.29151,3431.4,3431.1,0.29153]
[1736274661587,0.29152,3431.2,3431.0,4.1772]
[1736274661782,3.2078,3431.1,3430.2,3.2078]
[1736274661988,0.72886,3431.0,3430.2,3.2078]
[1736274662184,0.29158,3430.6,3430.3,0.2916]
[1736274662387,0.29158,3430.6,3430.2,3.2078]
[1736274662388,0.29158,3430.5,3430.2,3.4994]
[1736274662894,0.72886,3431.0,3430.3,0.2916]
[1736274663096,0.29156,3430.8,3430.5,0.29158]
[1736274663388,0.29156,3430.8,3430.2,3.2078]
[1736274663585,0.29157,3430.7,3430.4,0.29159]
[1736274663787,0.29159,3430.5,3430.3,0.2916]
[1736274663982,3.2078,3431.1,3430.2,3.2078]
[1736274663983,0.29159,3430.4,3430.2,3.2078]
[1736274664185,3.2078,3430.5,3429.9,0.9305]
[1736274664380,3.2078,3430.5,3429.7,3.2078]
[1736274664594,3.93675,3430.5,3429.7,3.2078]
[1736274664787,0.29163,3429.9,3429.7,3.49944]
[1736274664991,0.29164,3429.8,3429.7,3.2078]
[1736274666386,0.72918,3429.5,3428.8,3.2078]
[1736274666586,0.29175,3428.5,3428.3,1.25526]
[1736274666781,0.29174,3428.7,3428.3,0.9635]
[1736274666988,3.2078,3430.0,3428.6,3.2078]
[1736274667179,0.9516,3430.3,3429.3,3.2078]
[1736274667180,0.29167,3429.5,3429.3,3.2078]
[1736274667380,4.1095,3430.1,3429.3,3.2078]
[1736274667381,0.29167,3429.4,3429.3,3.2078]
[1736274667584,3.2078,3429.7,3428.9,3.2078]
[1736274667781,0.29173,3428.8,3428.6,0.29174]
[1736274667986,0.29171,3429.0,3428.5,3.2078]
[1736274668187,3.2078,3429.3,3428.5,3.49954]
[1736274668493,0.29174,3428.7,3428.5,3.2078]
[1736274668798,3.2078,3428.8,3427.4,2.77443905]
[1736274669102,0.9295,3428.7,3427.8,3.2078]
[1736274669392,0.9295,3428.7,3427.4,0.9693]
[1736274669393,3.2078,3428.4,3427.4,0.9693]
[1736274669585,0.29183,3427.6,3427.4,0.9693]
[1736274669781,3.2078,3428.4,3427.4,0.9693]
[1736274669988,0.72942,3428.3,3427.4,0.9693]
[1736274670393,0.29182,3427.7,3427.4,1.26114]
[1736274670591,0.29182,3427.7,3427.4,0.9693]
[1736274670784,0.29182,3427.7,3427.4,1.26114]
[1736274670988,0.29181,3427.8,3427.5,0.29183]
[1736274671185,0.72942,3428.3,3427.5,0.29183]
[1736274671387,0.29186,3427.2,3427.0,0.29188]
[1736274671593,0.72953,3427.8,3426.9,3.2078]
[1736274671889,3.2078,3428.0,3427.0,2.77443905]
[1736274672094,3.2078,3428.4,3427.8,0.2918]
[1736274672393,0.72938,3428.6,3427.8,0.2918]
[1736274672591,0.72938,3428.6,3427.5,0.9047]
[1736274672592,3.2078,3428.5,3427.5,0.9047]
[1736274672790,0.29179,3428.1,3427.8,0.2918]
[1736274672987,0.2918,3428.0,3427.7,0.29181]
[1736274673294,3.1366,3428.7,3427.5,0.9047]
[1736274673295,5.6664254,3429.5,3427.9,3.2078]
[1736274673494,5.6664254,3429.5,3427.5,7.1967]
[1736274673495,0.2917,3429.2,3428.9,3.49951]
[1736274673789,5.6664254,3429.5,3429.0,0.2917]
[1736274673790,4.82483032,3429.3,3429.0,0.2917]
[1736274673994,4.53314032,3430.1,3429.2,2.77443905]
[1736274674196,4.53314032,3430.1,3429.8,0.29164]
[1736274674394,4.53314032,3430.1,3429.2,5.98223905]
[1736274674594,0.29163,3430.0,3429.7,0.29165]
[1736274674790,4.53314032,3430.1,3429.6,3.2078]
[1736274675390,7.74094032,3430.1,3429.2,3.2078]
[1736274675594,0.29164,3429.8,3429.2,3.2078]
[1736274675795,3.2078,3430.5,3429.2,5.98223905]
[1736274676093,0.29167,3429.5,3429.2,3.2078]
[1736274676299,0.29166,3429.6,3429.2,3.2078]
[1736274676606,3.2078,3430.1,3429.2,3.2078]
[1736274676607,0.29167,3429.5,3429.2,3.49948]
[1736274677092,3.2078,3430.1,3429.2,3.2078]
[1736274677297,0.29168,3429.3,3429.2,3.2078]
[1736274677599,0.29168,3429.3,3428.4,3.72773905]
[1736274677600,3.2078,3429.3,3428.4,3.72773905]
[1736274677794,3.2078,3429.3,3428.4,6.93553905]
[1736274678186,0.29172,3428.9,3428.4,6.93553905]
[1736274678390,3.93703,3429.3,3428.4,6.93553905]
[1736274678594,0.29173,3428.8,3428.5,0.29174]
[1736274678793,0.72923,3429.2,3428.4,7.22728905]
[1736274678996,0.29169,3429.2,3428.5,0.29174]
[1736274679300,3.2078,3429.3,3428.4,6.93553905]
[1736274679693,0.29171,3429.0,3428.7,0.29173]
[1736274679893,0.29172,3428.9,3428.6,0.29174]
[1736274680093,0.29172,3428.9,3428.7,0.29173]
[1736274680399,0.29172,3428.9,3428.6,0.29174]
[1736274680600,3.2078,3429.3,3428.6,0.29174]
[1736274680801,3.93702,3429.3,3428.4,6.93553905]
[1736274681003,3.93702,3429.3,3428.4,3.2078]
[1736274681004,3.2078,3429.3,3428.4,3.2078]
[1736274681198,0.29175,3428.5,3428.4,3.2078]
[1736274681392,2.77443905,3429.1,3427.9,3.2078]
[1736274681596,0.29181,3427.8,3427.7,3.2078]
[1736274681797,0.29181,3427.8,3427.6,3.75193905]
[1736274682101,0.29181,3427.9,3427.6,0.9775]
[1736274682298,3.2078,3428.6,3427.6,3.75193905]
[1736274682494,0.29178,3428.2,3427.8,3.2078]
[1736274682695,3.2078,3428.6,3427.8,3.2078]
[1736274682889,0.29175,3428.6,3428.4,3.2078]
[1736274683192,0.9366,3428.9,3428.0,2.77443905]
[1736274683703,0.9416,3429.0,3428.4,3.2078]
[1736274683893,0.29174,3428.7,3428.5,0.29175]
[1736274684197,0.9416,3429.0,3428.4,3.2078]
[1736274684399,3.2078,3429.2,3428.4,3.2078]
[1736274684595,4.1041,3429.6,3428.4,3.2078]
[1736274684793,0.29173,3428.8,3428.4,3.2078]
[1736274684995,0.29172,3428.9,3428.7,0.29173]
[1736274685191,4.1041,3429.6,3428.4,3.2078]
[1736274685397,4.1041,3429.6,3428.8,0.29172]
[1736274685696,0.29172,3429.0,3428.7,0.29173]
[1736274685901,0.29171,3429.1,3428.9,0.29172]
[1736274686103,0.2917,3429.2,3428.9,0.29172]
[1736274686297,4.1041,3429.6,3428.9,0.29172]
[1736274686603,0.29171,3429.1,3428.9,0.29172]
[1736274686793,0.29171,3429.0,3428.8,0.29173]
[1736274686996,4.1041,3429.6,3428.4,5.98223905]
[1736274687201,0.2917,3429.1,3428.9,0.29172]
[1736274687502,0.2917,3429.1,3428.4,5.98223905]
[1736274687698,0.29168,3429.4,3428.4,5.98223905]
[1736274688001,3.2078,3429.6,3428.8,3.2078]
[1736274688803,0.29171,3429.2,3428.8,3.2078]
[1736274689004,3.2078,3429.6,3428.8,3.2078]
[1736274689200,0.29173,3428.9,3428.8,3.2078]
[1736274689501,0.29177,3428.5,3428.3,1.21638]
[1736274689810,3.2078,3429.0,3428.3,0.29178]
[1736274689998,3.2078,3429.0,3428.0,3.68233905]
[1736274690301,0.29177,3428.4,3428.3,0.29178]
[1736274690606,0.29177,3428.5,3428.4,0.29177]
[1736274690911,0.29178,3428.3,3428.2,0.29178]
[1736274691203,3.2078,3429.0,3428.0,0.9079]
[1736274691403,0.29179,3428.3,3428.1,0.2918]
[1736274691607,0.2918,3428.1,3428.0,0.9079]
[1736274691801,0.2918,3428.2,3428.1,0.29179]
[1736274692103,0.2918,3428.1,3428.0,1.1997]
[1736274692298,3.2078,3428.6,3428.0,0.9079]
[1736274692503,0.2918,3428.1,3428.0,1.1997]
[1736274693004,0.72929,3429.1,3428.1,0.7295]
[1736274693202,5.0477,3429.2,3428.4,3.2078]
[1736274693395,3.2078,3428.8,3428.0,0.9079]
[1736274693602,0.72937,3428.7,3427.9,3.2078]
[1736274693805,0.29179,3428.2,3428.1,0.29179]
[1736274694104,0.72937,3428.7,3427.9,3.2078]
[1736274694300,0.72939,3428.6,3427.9,3.2078]
[1736274694503,3.50376905,3428.9,3427.9,3.2078]
[1736274694504,1.8399,3429.2,3428.0,2.77443905]
[1736274694711,0.29174,3428.8,3428.7,0.29174]
[1736274694899,0.29175,3428.7,3428.6,0.29174]
[1736274695201,1.8399,3429.2,3428.3,3.2078]
[1736274695401,0.29174,3428.8,3428.7,0.29174]
[1736274696109,0.29173,3428.9,3428.8,0.29173]
[1736274696607,0.29175,3428.7,3428.4,0.29177]
[1736274696907,3.2078,3428.9,3428.3,3.2078]
[1736274697207,0.29177,3428.4,3428.3,0.29177]
[1736274697602,3.2078,3428.9,3427.9,0.72954]
[1736274697802,0.29177,3428.5,3428.4,0.29176]
[1736274698908,0.29177,3428.5,3428.4,0.29177]
[1736274699103,0.29176,3428.6,3428.5,0.29176]
[1736274699299,3.2078,3428.9,3428.0,0.72952]
[1736274699508,0.29177,3428.5,3428.4,0.29176]
[1736274699905,0.29177,3428.4,3428.3,0.29177]
[1736274700312,0.2918,3428.1,3428.0,0.2918]
[1736274700609,3.2078,3428.5,3427.9,3.2078]
[1736274700809,0.2918,3428.1,3428.0,0.2918]
[1736274702207,5.85128,3428.0,3426.8,4.84957301]
[1736274702504,5.85128,3428.0,3425.9,13.5994209]
[1736274702505,3.2078,3426.9,3425.9,13.5994209]
[1736274702704,3.2078,3427.4,3426.6,0.2919]
[1736274703011,0.9189,3427.9,3426.8,3.2078]
[1736274703203,0.9189,3427.9,3426.9,0.9251]
[1736274703404,0.29181,3427.8,3427.5,0.29183]
[1736274703611,0.29184,3427.4,3427.1,0.29186]
[1736274703810,0.29183,3427.6,3427.3,0.29184]
[1736274704206,0.9189,3427.9,3426.8,3.2078]
[1736274704411,3.2078,3427.7,3426.8,3.2078]
[1736274704716,0.29183,3427.6,3427.3,0.29184]
[1736274705610,0.29185,3427.4,3427.2,0.29186]
[1736274705804,0.29186,3427.3,3426.8,3.2078]
[1736274706009,0.29186,3427.3,3427.0,0.29187]
[1736274706309,3.2078,3427.7,3426.8,3.2078]
[1736274706510,0.29188,3427.0,3426.8,0.29189]
[1736274706713,0.29187,3427.1,3426.9,0.29188]
[1736274707011,5.98223905,3427.7,3426.5,3.2078]
[1736274707212,2.2792027,3427.4,3426.5,3.2078]
[1736274707408,2.2792027,3427.4,3426.4,1.62642]
[1736274707409,2.2792027,3427.4,3426.9,3.2078]
[1736274707612,2.2792027,3427.4,3427.3,0.29185]
[1736274708312,2.5710427,3427.4,3427.3,0.29185]
[1736274708509,2.5710427,3427.5,3427.3,0.29185]
[1736274708912,0.29186,3427.3,3427.1,0.29186]
[1736274709112,2.2792027,3427.5,3426.9,3.2078]
[1736274709315,0.29186,3427.2,3427.0,0.29187]
[1736274710018,0.29187,3427.1,3426.9,3.49968]
[1736274710208,2.2792027,3427.5,3426.9,3.2078]
[1736274710808,0.29187,3427.1,3427.0,0.29187]
[1736274711109,2.2792027,3427.4,3426.9,3.49968]
[1736274711306,0.29187,3427.1,3426.9,3.2078]
[1736274711506,0.29187,3427.1,3427.0,0.29187]
[1736274712113,2.2792027,3427.3,3426.9,3.2078]
[1736274712313,2.5710527,3427.3,3427.1,0.29186]
[1736274712715,2.2792027,3427.3,3427.1,0.29186]
[1736274712920,2.2792027,3427.3,3426.9,3.2078]
[1736274713115,0.29187,3427.0,3426.9,3.2078]
[1736274713314,0.29193,3426.3,3426.2,1.24894]
[1736274713618,0.29193,3426.3,3426.1,3.2078]
[1736274713619,1.8147,3426.9,3426.1,3.2078]
[1736274714217,2.10659,3426.9,3426.7,0.29189]
[1736274714413,2.10659,3426.9,3426.5,3.2078]
[1736274714723,2.2792027,3426.7,3426.5,3.2078]
[1736274715019,2.2792027,3426.7,3426.6,1.25771]
[1736274715225,2.2792027,3426.7,3426.6,2.21551]
[1736274715825,0.29186,3427.2,3427.1,0.29187]
[1736274718232,0.29186,3427.3,3427.2,0.29185]
[1736274718530,0.29186,3427.2,3427.1,0.29186]
[1736274719037,5.4870027,3427.4,3427.3,0.29185]
[1736274719221,2.2792027,3427.4,3427.3,0.29185]
[1736274719724,1.77211457,3427.6,3427.5,0.29183]
[1736274719924,4.53314032,3428.0,3427.9,0.2918]
[1736274720126,4.82493032,3428.0,3427.9,3.4996]
[1736274720325,4.53314032,3428.0,3427.5,3.2078]
[1736274720730,4.82493032,3428.0,3427.9,0.2918]
[1736274720931,7.74094032,3428.0,3427.4,1.0361]
[1736274721131,7.74094032,3428.0,3426.9,3.2078]
[1736274721132,3.2078,3427.6,3426.9,3.2078]
[1736274721337,3.2078,3427.6,3427.5,0.29183]
[1736274721529,0.29182,3427.7,3427.6,0.29182]
[1736274722037,0.29184,3427.4,3427.3,0.29184]
[1736274722340,0.29185,3427.4,3427.3,0.29184]
[1736274722535,0.29184,3427.5,3427.4,0.29183]
[1736274724331,3.2078,3427.6,3426.9,4.2439]
[1736274724539,3.49963,3427.6,3427.5,0.29183]
[1736274724739,0.29183,3427.5,3427.4,0.29183]
[1736274725141,3.49963,3427.6,3427.5,0.29183]
[1736274725333,0.29183,3427.6,3427.5,0.29183]
[1736274725641,0.29182,3427.7,3427.6,0.29182]
[1736274725947,9.87924032,3428.0,3427.9,0.2918]
[1736274725948,4.53314032,3428.0,3427.9,0.2918]
[1736274727238,3.2078,3428.4,3427.9,0.2918]
[1736274727442,0.29183,3427.6,3427.5,0.29182]
[1736274727745,3.2078,3428.0,3427.1,0.72967]
[1736274727937,0.29183,3427.6,3427.5,0.29182]
[1736274728140,2.039,3427.9,3427.0,1.0126]
[1736274728341,0.29181,3427.8,3427.7,0.29181]
[1736274728639,0.29182,3427.7,3427.6,0.29182]
[1736274729135,0.29182,3427.7,3427.2,0.72965]
[1736274729136,2.039,3427.9,3427.2,0.72965]
[1736274729341,0.29182,3427.7,3427.6,0.29181]
[1736274729844,2.039,3427.9,3427.5,0.29182]
[1736274729845,0.29183,3427.6,3427.5,0.29182]
[1736274730043,2.039,3427.9,3427.0,1.74227]
[1736274730044,0.29184,3427.5,3427.4,0.29183]
[1736274730245,2.039,3427.9,3427.0,1.74228]
[1736274730544,0.29184,3427.5,3427.4,0.29183]
[1736274730841,0.29182,3427.6,3427.5,0.29182]
[1736274731035,0.29184,3427.5,3427.4,0.29183]
[1736274731237,0.29184,3427.5,3427.0,1.0126]
[1736274731238,0.43795421,3427.8,3427.0,1.0126]
[1736274731542,0.29183,3427.6,3427.5,0.29182]
[1736274731738,0.29184,3427.5,3427.4,0.29183]
[1736274732044,0.29185,3427.4,3427.3,0.29184]
[1736274733142,0.29184,3427.5,3427.4,0.29183]
[1736274733843,0.29185,3427.4,3427.3,0.29184]
[1736274735030,3.2078,3427.6,3426.9,3.2078]
[1736274735236,0.29189,3426.9,3426.8,0.29188]
[1736274735839,0.72961,3427.4,3426.5,3.2078]
[1736274736043,4.53314032,3427.1,3426.5,3.93758]
[1736274736242,4.53314032,3427.1,3426.9,0.29188]
[1736274736243,0.29188,3427.0,3426.9,0.29188]
[1736274736443,4.53314032,3427.1,3426.5,3.2078]
[1736274736643,0.2919,3426.8,3426.7,0.29189]
[1736274736941,1.34008,3427.0,3426.9,0.29188]
[1736274737342,0.29194,3426.3,3426.1,0.29194]
[1736274737542,0.29194,3426.2,3426.0,0.29195]
[1736274737838,0.29194,3426.2,3425.5,1.72531]
[1736274737839,4.53314032,3427.1,3425.8,5.98223905]
[1736274738037,4.53314032,3427.1,3427.0,0.29187]
[1736274738742,6.79971048,3427.1,3427.0,8.06630905]
[1736274739045,7.00313556,3427.3,3427.0,7.77443905]
[1736274739244,6.31314556,3427.3,3427.2,3.49966]
[1736274739740,6.31314556,3427.3,3427.2,8.49966]
[1736274740239,2.30996,3428.4,3428.2,0.29177]
[1736274740442,0.29176,3428.4,3428.2,0.29177]
[1736274740834,7.78473227,3428.6,3427.8,3.2078]
[1736274741241,7.78473227,3428.6,3428.5,0.29175]
[1736274741446,12.33270016,3428.9,3428.3,3.2078]
[1736274741447,4.86865227,3428.9,3428.3,3.2078]
[1736274741649,4.57693227,3428.9,3428.3,3.2078]
[1736274742147,4.57693227,3428.9,3428.8,0.29172]
[1736274742340,4.57693227,3428.9,3428.3,3.2078]